[Event "Titled Tuesday Blitz November 01 Early 2022"]
[White "Bagwe Gaurang"]
[Black "Itkis, Boris"]
[WhiteFideId "45039895"]
[BlackFideId "1209167"]
[WhiteElo "1931"]
[BlackElo "2232"]
[Result "1-0"]
[Round "03"]
[TimeControl "180+1"]
[Date "2022.11.02"]
[WhiteClock "0:01:27"]
[BlackClock "0:00:45"]

1. e4 {[%clk 0:03:00]}  c6 {[%clk 0:02:58]} 2. d4 {[%clk 0:02:58]}  d5 {[%clk 0:02:58]} 3. Nc3 {[%clk 0:02:56]}  dxe4 {[%clk 0:02:58]} 4. Nxe4 {[%clk 0:02:56]}  Nf6 {[%clk 0:02:58]} 5. Nxf6+ {[%clk 0:02:56]}  exf6 {[%clk 0:02:59]} 6. c3 {[%clk 0:02:55]}  Bd6 {[%clk 0:02:59]} 7. Bd3 {[%clk 0:02:49]}  Na6 {[%clk 0:02:59]} 8. Ne2 {[%clk 0:02:49]}  Nc7 {[%clk 0:02:58]} 9. O-O {[%clk 0:02:49]}  h5 {[%clk 0:02:55]} 10. Bf4 {[%clk 0:02:49]}  Nd5 {[%clk 0:02:50]} 11. Bxd6 {[%clk 0:02:47]}  Qxd6 {[%clk 0:02:51]} 12. Re1 {[%clk 0:02:47]}  Kf8 {[%clk 0:02:47]} 13. c4 {[%clk 0:02:40]}  Ne7 {[%clk 0:02:33]} 14. Ng3 {[%clk 0:02:37]}  h4 {[%clk 0:02:24]} 15. Ne4 {[%clk 0:02:37]}  Qxd4 {[%clk 0:02:22]} 16. Qf3 {[%clk 0:02:33]}  f5 {[%clk 0:02:07]} 17. Rad1 {[%clk 0:02:08]}  fxe4 {[%clk 0:01:32]} 18. Bxe4 {[%clk 0:02:01]}  Qb6 {[%clk 0:01:31]} 19. c5 {[%clk 0:02:01]}  Qc7 {[%clk 0:01:25]} 20. Qf4 {[%clk 0:02:01]}  Nd5 {[%clk 0:01:02]} 21. Qxc7 {[%clk 0:01:56]}  Nxc7 {[%clk 0:01:03]} 22. Rd8+ {[%clk 0:01:50]}  Ne8 {[%clk 0:01:03]} 23. Bf5 {[%clk 0:01:28]}  Bxf5 {[%clk 0:00:45]} 24. Rexe8# {[%clk 0:01:27]} 1-0


[Site "https://www.chess.com"]

[Event "Titled Tuesday Blitz November 01 Early 2022"]
[White "Barria Zuniga, Daniel"]
[Black "Toshali, V"]
[WhiteFideId "3400816"]
[BlackFideId "5072611"]
[WhiteElo "2414"]
[BlackElo "1973"]
[Result "1-0"]
[Round "03"]
[TimeControl "180+1"]
[Date "2022.11.02"]
[WhiteClock "0:00:25"]
[BlackClock "0:00:15"]

1. c4 {[%clk 0:03:00]}  c6 {[%clk 0:02:59]} 2. g3 {[%clk 0:02:59]}  d5 {[%clk 0:02:58]} 3. Bg2 {[%clk 0:02:59]}  Nf6 {[%clk 0:02:58]} 4. Nf3 {[%clk 0:03:00]}  Bg4 {[%clk 0:02:56]} 5. O-O {[%clk 0:03:00]}  e6 {[%clk 0:02:56]} 6. d3 {[%clk 0:02:59]}  Nbd7 {[%clk 0:02:56]} 7. Nc3 {[%clk 0:02:59]}  Bd6 {[%clk 0:02:53]} 8. h3 {[%clk 0:02:58]}  Bh5 {[%clk 0:02:51]} 9. g4 {[%clk 0:02:55]}  Bg6 {[%clk 0:02:50]} 10. Nh4 {[%clk 0:02:55]}  Rc8 {[%clk 0:02:19]} 11. e3 {[%clk 0:02:42]}  Bb8 {[%clk 0:02:10]} 12. f4 {[%clk 0:02:32]}  Qc7 {[%clk 0:02:07]} 13. Nxg6 {[%clk 0:01:54]}  hxg6 {[%clk 0:02:06]} 14. b3 {[%clk 0:01:53]}  g5 {[%clk 0:01:41]} 15. Ba3 {[%clk 0:01:35]}  d4 {[%clk 0:01:35]} 16. exd4 {[%clk 0:01:25]}  gxf4 {[%clk 0:01:34]} 17. Ne4 {[%clk 0:01:20]}  Nxe4 {[%clk 0:01:30]} 18. dxe4 {[%clk 0:01:21]}  f3 {[%clk 0:01:29]} 19. Qxf3 {[%clk 0:01:20]}  Qh2+ {[%clk 0:01:26]} 20. Kf2 {[%clk 0:01:20]}  Nf6 {[%clk 0:01:12]} 21. e5 {[%clk 0:01:13]}  Nd7 {[%clk 0:00:24]} 22. Rae1 {[%clk 0:00:32]}  c5 {[%clk 0:00:19]} 23. Rh1 {[%clk 0:00:30]}  Nxe5 {[%clk 0:00:18]} 24. dxe5 {[%clk 0:00:30]}  Bxe5 {[%clk 0:00:14]} 25. Rxh2 {[%clk 0:00:29]}  Bxh2 {[%clk 0:00:15]} 26. Qxb7 {[%clk 0:00:25]} 1-0


[Site "https://www.chess.com"]

[Event "Titled Tuesday Blitz November 01 Early 2022"]
[White "Beerdsen, Thomas"]
[Black "Gubajdullin, Alexei"]
[WhiteFideId "1030108"]
[BlackFideId "4141202"]
[WhiteElo "2567"]
[BlackElo "2200"]
[Result "1-0"]
[Round "03"]
[TimeControl "180+1"]
[Date "2022.11.01"]
[WhiteClock "0:00:44"]
[BlackClock "0:00:04"]

1. e4 {[%clk 0:03:00]}  g6 {[%clk 0:02:59]} 2. d3 {[%clk 0:02:51]}  Bg7 {[%clk 0:02:58]} 3. h4 {[%clk 0:02:49]}  h6 {[%clk 0:02:52]} 4. Nc3 {[%clk 0:02:46]}  c6 {[%clk 0:02:46]} 5. h5 {[%clk 0:02:44]}  g5 {[%clk 0:02:46]} 6. f4 {[%clk 0:02:45]}  gxf4 {[%clk 0:02:46]} 7. Bxf4 {[%clk 0:02:46]}  d5 {[%clk 0:02:44]} 8. Nf3 {[%clk 0:02:45]}  dxe4 {[%clk 0:02:42]} 9. Nxe4 {[%clk 0:02:42]}  Bxb2 {[%clk 0:02:41]} 10. Rb1 {[%clk 0:02:43]}  Bg7 {[%clk 0:02:40]} 11. Qd2 {[%clk 0:02:34]}  Nd7 {[%clk 0:02:34]} 12. Qe3 {[%clk 0:02:02]}  Kf8 {[%clk 0:02:11]} 13. Be2 {[%clk 0:01:57]}  Ngf6 {[%clk 0:02:10]} 14. O-O {[%clk 0:01:45]}  Nd5 {[%clk 0:02:07]} 15. Qc1 {[%clk 0:01:46]}  Nxf4 {[%clk 0:02:01]} 16. Qxf4 {[%clk 0:01:47]}  Nf6 {[%clk 0:02:00]} 17. Ne5 {[%clk 0:01:46]}  Kg8 {[%clk 0:01:06]} 18. c3 {[%clk 0:01:42]}  Qe8 {[%clk 0:00:47]} 19. d4 {[%clk 0:01:36]}  Kh7 {[%clk 0:00:47]} 20. Bd3 {[%clk 0:01:35]}  Kg8 {[%clk 0:00:45]} 21. Bc4 {[%clk 0:01:32]}  Nd5 {[%clk 0:00:42]} 22. Qxf7+ {[%clk 0:01:21]}  Qxf7 {[%clk 0:00:31]} 23. Nxf7 {[%clk 0:01:22]}  Rh7 {[%clk 0:00:26]} 24. Nd8 {[%clk 0:01:23]}  e5 {[%clk 0:00:18]} 25. Nxb7 {[%clk 0:01:08]}  exd4 {[%clk 0:00:17]} 26. Na5 {[%clk 0:01:02]}  Kh8 {[%clk 0:00:16]} 27. Nxc6 {[%clk 0:01:02]}  Nxc3 {[%clk 0:00:16]} 28. Ne7 {[%clk 0:00:50]}  Be5 {[%clk 0:00:04]} 29. Rf8+ {[%clk 0:00:43]}  Kg7 {[%clk 0:00:04]} 30. Rg8# {[%clk 0:00:44]} 1-0


[Site "https://www.chess.com"]

[Event "Titled Tuesday Blitz November 01 Early 2022"]
[White "Begunov, Konstantin"]
[Black "Aung Thant Zin"]
[WhiteFideId "4118510"]
[BlackFideId "13000063"]
[WhiteElo "2225"]
[BlackElo "2278"]
[Result "1/2-1/2"]
[Round "03"]
[TimeControl "180+1"]
[Date "2022.11.02"]
[WhiteClock "0:00:11"]
[BlackClock "0:00:11"]

1. d4 {[%clk 0:02:57]}  Nf6 {[%clk 0:02:58]} 2. c4 {[%clk 0:02:57]}  e6 {[%clk 0:02:58]} 3. Nf3 {[%clk 0:02:57]}  b6 {[%clk 0:02:57]} 4. g3 {[%clk 0:02:57]}  Ba6 {[%clk 0:02:56]} 5. Qa4 {[%clk 0:02:57]}  c6 {[%clk 0:02:51]} 6. Nc3 {[%clk 0:02:55]}  Be7 {[%clk 0:02:40]} 7. e4 {[%clk 0:02:55]}  d6 {[%clk 0:02:31]} 8. e5 {[%clk 0:02:38]}  dxe5 {[%clk 0:02:22]} 9. dxe5 {[%clk 0:02:38]}  Nfd7 {[%clk 0:02:20]} 10. Be3 {[%clk 0:02:14]}  O-O {[%clk 0:02:14]} 11. Rd1 {[%clk 0:02:03]}  Qc7 {[%clk 0:02:13]} 12. Bg2 {[%clk 0:01:51]}  Nxe5 {[%clk 0:01:55]} 13. Nxe5 {[%clk 0:01:49]}  Qxe5 {[%clk 0:01:55]} 14. O-O {[%clk 0:01:49]}  Bb7 {[%clk 0:01:50]} 15. Bf4 {[%clk 0:01:39]}  Qh5 {[%clk 0:01:48]} 16. Ne4 {[%clk 0:01:07]}  b5 {[%clk 0:01:21]} 17. Qb3 {[%clk 0:00:54]}  Na6 {[%clk 0:01:16]} 18. cxb5 {[%clk 0:00:49]}  cxb5 {[%clk 0:01:14]} 19. Nf6+ {[%clk 0:00:39]}  Bxf6 {[%clk 0:01:13]} 20. Bxb7 {[%clk 0:00:40]}  Nc5 {[%clk 0:01:12]} 21. Qxb5 {[%clk 0:00:35]}  a6 {[%clk 0:01:01]} 22. Qa5 {[%clk 0:00:34]}  Bd8 {[%clk 0:00:57]} 23. Qb4 {[%clk 0:00:19]}  Nxb7 {[%clk 0:00:53]} 24. Qxb7 {[%clk 0:00:20]}  Bf6 {[%clk 0:00:50]} 25. Rd7 {[%clk 0:00:20]}  Qg6 {[%clk 0:00:43]} 26. b3 {[%clk 0:00:19]}  h5 {[%clk 0:00:42]} 27. Rc1 {[%clk 0:00:17]}  h4 {[%clk 0:00:42]} 28. Rcc7 {[%clk 0:00:17]}  h3 {[%clk 0:00:41]} 29. Qc6 {[%clk 0:00:16]}  Rad8 {[%clk 0:00:39]} 30. Rxd8 {[%clk 0:00:13]}  Rxd8 {[%clk 0:00:38]} 31. Qc1 {[%clk 0:00:11]}  Qg4 {[%clk 0:00:34]} 32. Rc8 {[%clk 0:00:08]}  Qf3 {[%clk 0:00:32]} 33. Rxd8+ {[%clk 0:00:08]}  Bxd8 {[%clk 0:00:31]} 34. Kf1 {[%clk 0:00:09]}  Bb6 {[%clk 0:00:29]} 35. Qc2 {[%clk 0:00:07]}  Qg2+ {[%clk 0:00:28]} 36. Ke1 {[%clk 0:00:08]}  Qg1+ {[%clk 0:00:28]} 37. Kd2 {[%clk 0:00:06]}  Qxf2+ {[%clk 0:00:28]} 38. Kc3 {[%clk 0:00:07]}  Qf3+ {[%clk 0:00:28]} 39. Kb2 {[%clk 0:00:07]}  Qg2 {[%clk 0:00:26]} 40. a4 {[%clk 0:00:06]}  f6 {[%clk 0:00:22]} 41. b4 {[%clk 0:00:07]}  g5 {[%clk 0:00:19]} 42. Bc1 {[%clk 0:00:07]}  Bd4+ {[%clk 0:00:18]} 43. Kb3 {[%clk 0:00:07]}  Qxc2+ {[%clk 0:00:15]} 44. Kxc2 {[%clk 0:00:08]}  Kf7 {[%clk 0:00:15]} 45. b5 {[%clk 0:00:08]}  axb5 {[%clk 0:00:13]} 46. axb5 {[%clk 0:00:09]}  e5 {[%clk 0:00:14]} 47. Kd3 {[%clk 0:00:10]}  Ke6 {[%clk 0:00:14]} 48. Be3 {[%clk 0:00:10]}  Kd5 {[%clk 0:00:13]} 49. Bxd4 {[%clk 0:00:09]}  exd4 {[%clk 0:00:13]} 50. b6 {[%clk 0:00:10]}  Kc6 {[%clk 0:00:12]} 51. Kxd4 {[%clk 0:00:11]}  Kxb6 {[%clk 0:00:11]} 52. Ke4 {[%clk 0:00:12]}  Kc6 {[%clk 0:00:09]} 53. Kf5 {[%clk 0:00:12]}  Kd5 {[%clk 0:00:09]} 54. Kxf6 {[%clk 0:00:13]}  Ke4 {[%clk 0:00:08]} 55. Kxg5 {[%clk 0:00:13]}  Kf3 {[%clk 0:00:09]} 56. g4 {[%clk 0:00:10]}  Kg2 {[%clk 0:00:09]} 57. Kf4 {[%clk 0:00:10]}  Kxh2 {[%clk 0:00:10]} 58. g5 {[%clk 0:00:10]}  Kg1 {[%clk 0:00:10]} 59. g6 {[%clk 0:00:11]}  h2 {[%clk 0:00:11]} 60. g7 {[%clk 0:00:12]}  h1=Q {[%clk 0:00:11]} 61. g8=Q+ {[%clk 0:00:12]}  Qg2 {[%clk 0:00:12]} 62. Qxg2+ {[%clk 0:00:11]}  Kxg2 {[%clk 0:00:11]} 1/2-1/2


[Site "https://www.chess.com"]

[Event "Titled Tuesday Blitz November 01 Early 2022"]
[White "Belozerov, Andrei"]
[Black "Kamsky, Gata"]
[WhiteFideId "4120213"]
[BlackFideId "2000024"]
[WhiteElo "2360"]
[BlackElo "2666"]
[Result "1/2-1/2"]
[Round "03"]
[TimeControl "180+1"]
[Date "2022.11.01"]
[WhiteClock "0:01:16"]
[BlackClock "0:00:31"]

1. e4 {[%clk 0:03:00]}  e5 {[%clk 0:02:57]} 2. Bc4 {[%clk 0:03:00]}  Nf6 {[%clk 0:02:51]} 3. Nc3 {[%clk 0:02:59]}  Nc6 {[%clk 0:02:45]} 4. d3 {[%clk 0:02:59]}  Na5 {[%clk 0:02:37]} 5. Nge2 {[%clk 0:02:59]}  Nxc4 {[%clk 0:02:36]} 6. dxc4 {[%clk 0:03:00]}  d6 {[%clk 0:02:36]} 7. O-O {[%clk 0:02:59]}  Be7 {[%clk 0:02:35]} 8. b3 {[%clk 0:02:57]}  O-O {[%clk 0:02:34]} 9. f3 {[%clk 0:02:56]}  c6 {[%clk 0:02:27]} 10. Be3 {[%clk 0:02:54]}  Be6 {[%clk 0:02:24]} 11. Qd2 {[%clk 0:02:46]}  d5 {[%clk 0:02:10]} 12. cxd5 {[%clk 0:02:46]}  cxd5 {[%clk 0:02:10]} 13. exd5 {[%clk 0:02:46]}  Nxd5 {[%clk 0:02:09]} 14. Nxd5 {[%clk 0:02:44]}  Qxd5 {[%clk 0:02:07]} 15. Qxd5 {[%clk 0:02:40]}  Bxd5 {[%clk 0:02:07]} 16. Rad1 {[%clk 0:02:35]}  Bc6 {[%clk 0:01:51]} 17. c4 {[%clk 0:02:33]}  b5 {[%clk 0:01:32]} 18. Nc3 {[%clk 0:02:14]}  bxc4 {[%clk 0:01:31]} 19. bxc4 {[%clk 0:02:14]}  Rfc8 {[%clk 0:01:29]} 20. Nd5 {[%clk 0:02:12]}  Bf8 {[%clk 0:01:26]} 21. Rc1 {[%clk 0:02:03]}  Bd7 {[%clk 0:01:20]} 22. Rfd1 {[%clk 0:01:59]}  Be6 {[%clk 0:01:20]} 23. c5 {[%clk 0:01:45]}  Rc6 {[%clk 0:01:16]} 24. Nb4 {[%clk 0:01:44]}  Rcc8 {[%clk 0:01:11]} 25. Nd5 {[%clk 0:01:37]}  Rab8 {[%clk 0:01:04]} 26. c6 {[%clk 0:01:32]}  Rb5 {[%clk 0:01:02]} 27. Nc3 {[%clk 0:01:30]}  Ra5 {[%clk 0:01:00]} 28. Ne4 {[%clk 0:01:29]}  Bxa2 {[%clk 0:00:45]} 29. Nd6 {[%clk 0:01:19]}  Bxd6 {[%clk 0:00:36]} 30. Rxd6 {[%clk 0:01:20]}  Rd5 {[%clk 0:00:36]} 31. Rxd5 {[%clk 0:01:16]}  Bxd5 {[%clk 0:00:36]} 32. Bxa7 {[%clk 0:01:16]}  Bxc6 {[%clk 0:00:33]} 33. Rb1 {[%clk 0:01:16]}  f6 {[%clk 0:00:32]} 34. Rb8 {[%clk 0:01:16]}  Rxb8 {[%clk 0:00:32]} 35. Bxb8 {[%clk 0:01:17]}  Kf7 {[%clk 0:00:31]} 36. Kf2 {[%clk 0:01:17]}  Ke6 {[%clk 0:00:31]} 37. Ke3 {[%clk 0:01:17]}  g5 {[%clk 0:00:31]} 38. g3 {[%clk 0:01:16]}  h5 {[%clk 0:00:31]} 39. f4 {[%clk 0:01:10]}  exf4+ {[%clk 0:00:31]} 40. gxf4 {[%clk 0:01:11]}  g4 {[%clk 0:00:31]} 41. Ba7 {[%clk 0:01:09]}  h4 {[%clk 0:00:31]} 42. Kf2 {[%clk 0:01:09]}  Kf5 {[%clk 0:00:31]} 43. Bd4 {[%clk 0:01:09]}  Bd5 {[%clk 0:00:31]} 44. Bc3 {[%clk 0:01:09]}  g3+ {[%clk 0:00:29]} 45. hxg3 {[%clk 0:01:09]}  h3 {[%clk 0:00:29]} 46. Kg1 {[%clk 0:01:09]}  Bf3 {[%clk 0:00:28]} 47. Kh2 {[%clk 0:01:09]}  Bg4 {[%clk 0:00:29]} 48. Bb2 {[%clk 0:01:09]}  Kg6 {[%clk 0:00:29]} 49. Bc3 {[%clk 0:01:10]}  Kf5 {[%clk 0:00:29]} 50. Bb2 {[%clk 0:01:10]}  Ke6 {[%clk 0:00:29]} 51. Bc3 {[%clk 0:01:11]}  f5 {[%clk 0:00:30]} 52. Bb2 {[%clk 0:01:11]}  Kd5 {[%clk 0:00:31]} 53. Be5 {[%clk 0:01:12]}  Ke4 {[%clk 0:00:31]} 54. Bf6 {[%clk 0:01:12]}  Kf3 {[%clk 0:00:32]} 55. Bg5 {[%clk 0:01:13]}  Kf2 {[%clk 0:00:32]} 56. Bh4 {[%clk 0:01:14]}  Kf3 {[%clk 0:00:31]} 57. Bg5 {[%clk 0:01:14]}  Ke4 {[%clk 0:00:31]} 58. Bh4 {[%clk 0:01:15]}  Kf3 {[%clk 0:00:31]} 59. Bg5 {[%clk 0:01:16]} 1/2-1/2


[Site "https://www.chess.com"]

[Event "Titled Tuesday Blitz November 01 Early 2022"]
[White "Besedes, Danilo"]
[Black "Shipov, Sergei"]
[WhiteFideId "946796"]
[BlackFideId "4113624"]
[WhiteElo "2352"]
[BlackElo "2758"]
[Result "0-1"]
[Round "03"]
[TimeControl "180+1"]
[Date "2022.11.02"]
[WhiteClock "0:00:04"]
[BlackClock "0:00:13"]

1. Nf3 {[%clk 0:03:00]}  d5 {[%clk 0:02:59]} 2. g3 {[%clk 0:02:58]}  c6 {[%clk 0:02:58]} 3. Bg2 {[%clk 0:02:57]}  Bg4 {[%clk 0:02:58]} 4. h3 {[%clk 0:02:53]}  Bh5 {[%clk 0:02:58]} 5. d4 {[%clk 0:02:52]}  Nd7 {[%clk 0:02:57]} 6. O-O {[%clk 0:02:50]}  e6 {[%clk 0:02:56]} 7. c4 {[%clk 0:02:50]}  Ngf6 {[%clk 0:02:56]} 8. Nc3 {[%clk 0:02:48]}  Be7 {[%clk 0:02:48]} 9. Qb3 {[%clk 0:02:36]}  Qb6 {[%clk 0:02:48]} 10. c5 {[%clk 0:02:34]}  Qxb3 {[%clk 0:02:47]} 11. axb3 {[%clk 0:02:34]}  O-O {[%clk 0:02:47]} 12. b4 {[%clk 0:02:34]}  a6 {[%clk 0:02:47]} 13. Bf4 {[%clk 0:02:32]}  Ne4 {[%clk 0:02:32]} 14. Rfe1 {[%clk 0:02:28]}  f5 {[%clk 0:02:30]} 15. Ne5 {[%clk 0:02:23]}  Nxe5 {[%clk 0:02:28]} 16. Bxe5 {[%clk 0:02:20]}  g5 {[%clk 0:02:21]} 17. f3 {[%clk 0:01:59]}  Nf6 {[%clk 0:02:21]} 18. e4 {[%clk 0:01:52]}  Rae8 {[%clk 0:02:04]} 19. exf5 {[%clk 0:01:43]}  exf5 {[%clk 0:02:03]} 20. g4 {[%clk 0:01:32]}  Bg6 {[%clk 0:02:02]} 21. Re2 {[%clk 0:01:26]}  Nd7 {[%clk 0:01:59]} 22. Bg3 {[%clk 0:01:11]}  Bf6 {[%clk 0:01:55]} 23. Bf2 {[%clk 0:01:07]}  f4 {[%clk 0:01:48]} 24. Rae1 {[%clk 0:01:05]}  Rxe2 {[%clk 0:01:47]} 25. Rxe2 {[%clk 0:01:05]}  Kf7 {[%clk 0:01:34]} 26. Bf1 {[%clk 0:01:05]}  Bd3 {[%clk 0:01:29]} 27. Re1 {[%clk 0:01:05]}  Bxf1 {[%clk 0:01:29]} 28. Kxf1 {[%clk 0:01:06]}  h5 {[%clk 0:01:26]} 29. Re2 {[%clk 0:01:04]}  Rh8 {[%clk 0:01:26]} 30. Kg2 {[%clk 0:01:04]}  Nf8 {[%clk 0:01:26]} 31. Na2 {[%clk 0:00:58]}  Ne6 {[%clk 0:01:25]} 32. Rd2 {[%clk 0:00:55]}  Ra8 {[%clk 0:01:21]} 33. Nc3 {[%clk 0:00:38]}  a5 {[%clk 0:01:03]} 34. b5 {[%clk 0:00:37]}  a4 {[%clk 0:01:03]} 35. Rd1 {[%clk 0:00:37]}  hxg4 {[%clk 0:01:00]} 36. hxg4 {[%clk 0:00:37]}  a3 {[%clk 0:01:00]} 37. bxc6 {[%clk 0:00:13]}  bxc6 {[%clk 0:00:58]} 38. bxa3 {[%clk 0:00:13]}  Rxa3 {[%clk 0:00:57]} 39. Ne2 {[%clk 0:00:14]}  Ra2 {[%clk 0:00:54]} 40. Kf1 {[%clk 0:00:14]}  Nc7 {[%clk 0:00:51]} 41. Rb1 {[%clk 0:00:13]}  Nb5 {[%clk 0:00:51]} 42. Rb3 {[%clk 0:00:10]}  Ra1+ {[%clk 0:00:48]} 43. Kg2 {[%clk 0:00:09]}  Rd1 {[%clk 0:00:46]} 44. Rb4 {[%clk 0:00:08]}  Ke6 {[%clk 0:00:45]} 45. Ra4 {[%clk 0:00:08]}  Rd2 {[%clk 0:00:45]} 46. Kf1 {[%clk 0:00:08]}  Rxe2 {[%clk 0:00:46]} 47. Kxe2 {[%clk 0:00:05]}  Nc3+ {[%clk 0:00:46]} 48. Kd3 {[%clk 0:00:05]}  Nxa4 {[%clk 0:00:47]} 49. Kc2 {[%clk 0:00:03]}  Nxc5 {[%clk 0:00:14]} 50. dxc5 {[%clk 0:00:04]}  d4 {[%clk 0:00:13]} 0-1


[Site "https://www.chess.com"]

[Event "Titled Tuesday Blitz November 01 Early 2022"]
[White "Chernomordik, Pavel"]
[Black "Krysa, Leandro"]
[WhiteFideId "2804530"]
[BlackFideId "116807"]
[WhiteElo "2217"]
[BlackElo "2486"]
[Result "0-1"]
[Round "03"]
[TimeControl "180+1"]
[Date "2022.11.02"]
[WhiteClock "0:00:02"]
[BlackClock "0:00:07"]

1. e4 {[%clk 0:03:00]}  g6 {[%clk 0:03:00]} 2. h4 {[%clk 0:02:57]}  Nf6 {[%clk 0:02:59]} 3. e5 {[%clk 0:02:56]}  Nh5 {[%clk 0:02:59]} 4. g4 {[%clk 0:02:50]}  Ng7 {[%clk 0:02:51]} 5. h5 {[%clk 0:02:48]}  gxh5 {[%clk 0:02:51]} 6. gxh5 {[%clk 0:02:48]}  d6 {[%clk 0:02:52]} 7. exd6 {[%clk 0:02:35]}  Qxd6 {[%clk 0:02:51]} 8. d4 {[%clk 0:02:29]}  Nc6 {[%clk 0:02:50]} 9. c3 {[%clk 0:02:27]}  e5 {[%clk 0:02:46]} 10. d5 {[%clk 0:02:26]}  Ne7 {[%clk 0:02:44]} 11. c4 {[%clk 0:02:24]}  Ngf5 {[%clk 0:02:35]} 12. Nc3 {[%clk 0:02:23]}  Nd4 {[%clk 0:02:35]} 13. Be3 {[%clk 0:02:22]}  Nef5 {[%clk 0:02:29]} 14. Qd2 {[%clk 0:02:09]}  Nxe3 {[%clk 0:02:20]} 15. fxe3 {[%clk 0:02:08]}  Bh6 {[%clk 0:02:20]} 16. O-O-O {[%clk 0:02:01]}  Bg4 {[%clk 0:02:03]} 17. Re1 {[%clk 0:02:00]}  O-O-O {[%clk 0:01:57]} 18. Bh3 {[%clk 0:01:55]}  Rhg8 {[%clk 0:01:45]} 19. Kb1 {[%clk 0:01:47]}  Nf5 {[%clk 0:01:34]} 20. Ne4 {[%clk 0:01:26]}  Qb6 {[%clk 0:01:18]} 21. c5 {[%clk 0:01:24]}  Qa6 {[%clk 0:01:15]} 22. c6 {[%clk 0:01:09]}  bxc6 {[%clk 0:01:12]} 23. Nf6 {[%clk 0:01:08]}  Bxh3 {[%clk 0:00:56]} 24. Rxh3 {[%clk 0:00:53]}  Rg3 {[%clk 0:00:35]} 25. Rxg3 {[%clk 0:00:38]}  Nxg3 {[%clk 0:00:35]} 26. Qg2 {[%clk 0:00:34]}  Qd3+ {[%clk 0:00:34]} 27. Ka1 {[%clk 0:00:33]}  Nf5 {[%clk 0:00:25]} 28. Qg4 {[%clk 0:00:18]}  cxd5 {[%clk 0:00:22]} 29. Nf3 {[%clk 0:00:18]}  Kb8 {[%clk 0:00:17]} 30. Nxe5 {[%clk 0:00:17]}  Nxe3 {[%clk 0:00:16]} 31. Nxd3 {[%clk 0:00:15]}  Nxg4 {[%clk 0:00:15]} 32. Nxg4 {[%clk 0:00:15]}  Bd2 {[%clk 0:00:14]} 33. Rf1 {[%clk 0:00:14]}  Rg8 {[%clk 0:00:14]} 34. Nde5 {[%clk 0:00:13]}  d4 {[%clk 0:00:08]} 35. Kb1 {[%clk 0:00:13]}  Bg5 {[%clk 0:00:07]} 36. Rxf7 {[%clk 0:00:11]}  Re8 {[%clk 0:00:05]} 37. Kc2 {[%clk 0:00:11]}  Bf4 {[%clk 0:00:06]} 38. Nc6+ {[%clk 0:00:10]}  Kb7 {[%clk 0:00:05]} 39. Nxd4 {[%clk 0:00:11]}  Bd6 {[%clk 0:00:05]} 40. Nf5 {[%clk 0:00:10]}  Bc5 {[%clk 0:00:04]} 41. Nf6 {[%clk 0:00:09]}  Re1 {[%clk 0:00:05]} 42. Nd7 {[%clk 0:00:06]}  Bb4 {[%clk 0:00:04]} 43. Kb3 {[%clk 0:00:06]}  Ba5 {[%clk 0:00:04]} 44. Nc5+ {[%clk 0:00:06]}  Kc6 {[%clk 0:00:04]} 45. Nd3 {[%clk 0:00:06]}  Rh1 {[%clk 0:00:04]} 46. Nd4+ {[%clk 0:00:06]}  Kb7 {[%clk 0:00:04]} 47. Ne6 {[%clk 0:00:05]}  Rh3 {[%clk 0:00:03]} 48. Nc5+ {[%clk 0:00:04]}  Kc6 {[%clk 0:00:03]} 49. Rxh7 {[%clk 0:00:04]}  Bb6 {[%clk 0:00:04]} 50. Kc4 {[%clk 0:00:04]}  Rh4+ {[%clk 0:00:03]} 51. Kc3 {[%clk 0:00:03]}  Bxc5 {[%clk 0:00:04]} 52. Nxc5 {[%clk 0:00:04]}  Kxc5 {[%clk 0:00:05]} 53. Rxc7+ {[%clk 0:00:04]}  Kb6 {[%clk 0:00:05]} 54. Rh7 {[%clk 0:00:04]}  a5 {[%clk 0:00:05]} 55. b3 {[%clk 0:00:03]}  a4 {[%clk 0:00:05]} 56. b4 {[%clk 0:00:03]}  a3 {[%clk 0:00:04]} 57. Kb3 {[%clk 0:00:03]}  Rh3+ {[%clk 0:00:05]} 58. Ka4 {[%clk 0:00:03]}  Ka6 {[%clk 0:00:06]} 59. h6 {[%clk 0:00:02]}  Kb6 {[%clk 0:00:06]} 60. Rh8 {[%clk 0:00:02]}  Kb7 {[%clk 0:00:06]} 61. h7 {[%clk 0:00:02]}  Ka7 {[%clk 0:00:06]} 62. Ka5 {[%clk 0:00:02]}  Kb7 {[%clk 0:00:06]} 63. b5 {[%clk 0:00:02]}  Ka7 {[%clk 0:00:07]} 0-1


[Site "https://www.chess.com"]